Workbook

Sheet MATRIZ PLAN DE ACCION
A1: ENTIDAD | C1: INSTITUTO_DE_DEPORTE_Y_RECREACIÓN_IMDER | J1: SECTOR | K1: N.A. | P1: VIGENCIA | Q1: 2020 | T1: FORMULACION | W1: SEGUIMIENTO | Y1: X | Z1: PERIODO DE SEGUIIENTO | AC1: JULIO A SEPTIEMBRE
C2: Utilice este boton solo cuando necesite agregar mas filas.
A3: IDENTIFICACION CON EL PLAN DE DESARROLLO 2020 20XX | I3: INFORMACION DEL PROYECTO | P3: INFORMACION FISICA DEL PROYECTO | W3: INFORMACION FINANCIERA DEL PROYECTO | AC3: INFORMACION POBLACION | AE3: INFORMACION INSTITUCIONAL DEL PROYECTO
A4: EJE ESTRATEGICO | B4: PROGRAMA | C4: SUBPROGRAMA | D4: META PDM | E4: NOMBRE DEL INDICADOR META PRODUCTO PDM | F4: CANTIDAD PROGRAMADA PARA LA VIGENCIA (QP) | G4: CANTIDAD EJECUTADA PARA LA VIGENCIA (QE) | H4: % AVANCE DE EJECUCIÓN META PDM VIGENCIA | I4: Nº REGISTRO BPPV | J4: NOMBRE DEL PROYECTO REGISTRADO | K4: OBJETIVO | L4: ESTRATEGIA | M4: ESTADO DEL PROYECTO | N4: FECHA DE INICIO DE EJECUCION DEL PROYECTO VIGENCIA | O4: FECHA DE TERMINACION DE EJECUCION DEL PROYECTO VIGENCIA | P4: NOMBRE DEL INDICADOR DEL PROYECTO | Q4: UNIDAD DE MEDIDA | R4: MEDICIÓN INDICADOR DEL PROYECTO | T4: % INDICE DE AVANCE FISICO (b) * 100 /(a) | U4: JUSTIFICACIÓN DE AVANCE DEL PROYECTO | V4: VALOR PRESUPUESTO INICIAL | W4: PROGRAMACION PRESUPUESTAL | Y4: EJECUCION PRESUPUESTAL | AA4: % INDICE DE AVANCE FINANCIERO (ep)*100/ (pi) | AB4: JUSTIICACION AVACE FINANCIERO | AC4: POBLACION BENEFICIADA Y/O ATENDIDA | AE4: RESPONSABLES | AG4: OBSERVACIONES AL PROYECTO
F5: 2020 | G5: 2020 | H5: 2020 | N5: 2020 | O5: 2020 | R5: CANTIDAD PROGRAMADA (a) | S5: CANTIDAD EJECUTADA (b) | T5: (ifc ) | W5: VALOR $ (pi) | X5: FUENTE DE FINANCIACION | Y5: VALOR $ ( ep ) | Z5: FUENTE DE FINANCIACION | AA5: (iep) | AC5: UNIDAD | AD5: CANTIDAD | AE5: ENTIDAD EJECUTORA | AF5: COORDINADO CON OTRA ENTIDAD | AG5: 2020
A6: 1 | B6: 2 | C6: 3 | D6: 4 | E6: 5 | F6: 6 | G6: 7 | H6: 8 | I6: 9 | J6: 10 | K6: 11 | L6: 12 | M6: 13 | N6: 14 | O6: 15 | P6: 16 | Q6: 17 | R6: 18 | S6: 19 | T6: 20 | U6: 21 | V6: 22 | W6: 23 | X6: 24 | Y6: 25 | Z6: 26 | AA6: 27 | AB6: 28 | AC6: 29 | AD6: 30 | AE6: 31 | AF6: 32 | AG6: 33
A7: CIUDAD GARANTE DE DERECHOS | B7: CIUDAD ACTIVA | C7: N/A | D7: (221) Promover la actividad física, la recreación y el deporte con enfoque diferencial y de género en Villavicencio | E7: Personas beneficiadas por los programas de la actividad física, recreación y deporte con enfoque diferencial | F7: 10000 | G7: 144462 | H7: =IF(F7=0,"0",IFERROR(G7/F7,0)) -> 14.4462 | I7: 2016-050001-0056 | J7: DESARROLLO DE ACTIVIDADES FISICAS, DEPORTIVAS Y DE RECREACION COMUNITARIA EN EL MUNICIPIO DE VILLAVICENCIO, META, ORINOQUIA | K7: Promover y realizar actividades físicas deportivas y de recreación comunitaria para el mejoramiento de los hábitos y estilos de vida saludable | L7: Puesta en marcha de actividades regulares en los diferentes segmentos poblacionales mediante programas tales como: sin limites (población con funcionalidad diversa), reclusión, recreovia, actividad física para la salud, juego y estimulación para la vida (primera infancia). | M7: EJECUCION | N7: 2020-02-11 | O7: 2020-12-13 | P7: Personas Inscritas en el Programa | Q7: Numero | R7: 10000 | S7: 36877 | T7: =IF(R7=0,"0",IFERROR(S7/R7,0)) -> 3.6877 | U7: Se ha hecho la apetura de 3 Recreovias beneficiando a la poblacion asi: Afro: 298 LGTBI: 579 Indigena: 412 rumba aeróbica en vivo (64 trasmisiones) interacciones: 117.423 rumba a la calle y caravanas de la vida (103 barrios visitados) 25.750 entre niños y adultos | V7: 691978297 | W7: 691978297 | X7: 413,440,088 (90) 341769,998 (33) 26,768,211 Impuesto Telefonia Movil | Y7: 165899998 | Z7: $165,899,998 (90) | AA7: =IF(Y7=0,"0",IFERROR(Y7/W7,0)) -> 0.2397474006 | AB7: De acuerdo a los tres componentes que contempla el proyecto se ha logrado una ejecución financiera del 66,7% | AC7: PERSONAS | AD7: 36877 | AE7: INSTITUTO MUNICIPAL DE DEPORTE Y RECREACIÓN DE VILLAVICENCIO - IMDER | AF7: N/A | AG7: N/A
A8: CIUDAD GARANTE DE DERECHOS | B8: CIUDAD ACTIVA | C8: N/A | D8: (222) Realizar eventos recreativos y deportivos con la participación sectorial y comunitaria bajo el enfoque inclusivo, diferencial y de género de acuerdo con la política pública del deporte | E8: Eventos recreativos y deportivos comunitarios realizados | F8: 3 | G8: 1 | H8: =IF(F8=0,"0",IFERROR(G8/F8,0)) -> 0.3333333333 | I8: 2016-050001-0038 | J8: DESARROLLO DE LOS JUEGOS SECTORIALES DEPORTIVOS EN EL MUNICIPIO DE VILLAVICENCIO, META, ORINOQUIA. | K8: Realizar los juegos sectoriales deportivos en el municipio de villavicencio. | L8: Apoyo y realización de eventos deportivos buscando la interacción y beneficio de los diferentes grupos poblacionales. | M8: EJECUCION | N8: 2020-02-06 | O8: 2020-10-16 | P8: Eventos de Participacion Realizados | Q8: Numero | R8: 10 | S8: 1 | T8: =IF(R8=0,"0",IFERROR(S8/R8,0)) -> 0.1 | U8: Se ha Contribuido con el aprovechamiento del tiempo libre mediante la organizacion de eventos deportivos, en donde se promuevan actitudes de convivencia, juego limpio a través de encuentros deportivos libre de toda violencia, con la participación sectorial y comunitaria bajo el enfoque inclusivo, diferencial y de género | V8: 970500000 | W8: 970500000 | X8: $ 170,500,000(90) $ 166,666,670 (92) $ 600,000,000(33) | Y8: 157210293 | Z8: $20,000,000 (90) $127,210,293 (33) $10,000,000 (92) | AA8: =IF(Y8=0,"0",IFERROR(Y8/W9,0)) -> 0.1324274526 | AB8: De acuerdo a los componentes del proyecto se ha ejecutado un 18,8% debido a las condiciones de pandemia que retraso la ejecución de metas. | AC8: PERSONAS | AD8: 200 | AE8: INSTITUTO MUNICIPAL DE DEPORTE Y RECREACIÓN DE VILLAVICENCIO - IMDER | AF8: N/A | AG8: N/A
A9: CIUDAD GARANTE DE DERECHOS | B9: CIUDAD ACTIVA | C9: N/A | D9: (223) Implementar escuelas de formación deportiva, deporte comunitario y deporte alternativo con enfoque de género, étnico y diferencial en Villavicencio | E9: Escuelas de formación deportiva, deporte alternativo y comunitario implementadas | F9: 10 | G9: 14 | H9: 1.4 | I9: 2016-050001-0052 | J9: FORTALECIMIENTO DE LAS ESCUELAS POPULARES DE FORMACION DEPORTIVA EN EL MUNICIPIO DE VILLAVICENCIO, META, ORINOQUIA | K9: Incentivar y promover la vinculación de los niños, niñas y jóvenes del municipio de villavicencio en los diferentes programas institucionales | L9: 1.Implementación de escuelas de formación deportiva en los diferentes sectores de la ciudad, priorizando los barrios con mayores necesidades. 2. Culturizar a la comunidad sobre la importancia del deporte por medio del Fortalecimiento de las Escuelas de Formación del Municipio de Villavicencio. 3.realización del torneo interclubes "unidos por el deporte", buscando el fortalecimiento y la masificación de las escuelas de formación. | M9: EJECUCION | N9: 2020-02-06 | O9: 2020-12-29 | P9: Actividad de Condicion Fisica Realizas | Q9: Numero | R9: 15 | S9: 14 | T9: 0.9333333333 | U9: Escuelas de Iniciacion Deportiva en Centro de Educacion deportivas en el Sector Ubano: 8 ecuelas de formacion deprotivo en el sector urbano en los siguientes deportes 2 artes marciales, 2 de boxeo, 2 futbol y 2 de futbol de salon. Escuelas de Iniciacion Deportiva en Centro de Educacion deportivas en el Sector Rural: 6 escuelas de formacion deportiva en el sector rural, resguardo indigena de maguare, vereda las mercedes, en la vereda la cuncia, el amor, la cecilia en los isguients deportes en futbol de salon | V9: 1187142771 | W9: 1187142771 | X9: $360,000,000 (90) $200,000,000 (92) $520,000,000 (33) $ 107,142,771 Impuesto al Cigarrillo | Y9: 512959999 | Z9: $150,000,000 (90) $321,246,667 (33) $12,500,000 (92) $29,213,332 Impuesto Cigarrillo | AA9: =IF(Y9=0,"0",IFERROR(Y9/#REF!,0)) -> 0 | AB9: De acuerdo a los tres componentes que contempla el proyecto se ha logrado una ejecución financiera del 61,29% | AC9: PERSONAS | AD9: 31195 | AE9: INSTITUTO MUNICIPAL DE DEPORTE Y RECREACIÓN DE VILLAVICENCIO - IMDER | AF9: N/A | AG9: N/A
A10: CIUDAD GARANTE DE DERECHOS | B10: CIUDAD ACTIVA | C10: N/A | D10: (225) Fortalecer la actividad física y el deporte en las instituciones educativas | E10: Instituciones educativas beneficiadas | F10: 10 | G10: 12 | H10: =IF(F10=0,"0",IFERROR(G10/F10,0)) -> 1.2 | I10: 2016-050001-0056 | J10: DESARROLLO DE ACTIVIDADES FISICAS, DEPORTIVAS Y DE RECREACION COMUNITARIA EN EL MUNICIPIO DE VILLAVICENCIO, META, ORINOQUIA | K10: Promover y realizar actividades físicas deportivas y de recreación comunitaria para el mejoramiento de los hábitos y estilos de vida saludable | L10: Puesta en marcha de actividades regulares en los diferentes segmentos poblacionales mediante programas tales como: sin limites (población con funcionalidad diversa), reclusión, recreovia, actividad física para la salud, juego y estimulación para la vida (primera infancia). | M10: EJECUCION | N10: 2020-02-11 | O10: 2020-12-13 | P10: Actividad de Condicion Fisica Realizas | Q10: Numero | R10: 100000 | S10: 45000 | T10: 0.45 | U10: En la ejecucion del proyecto se ha logrado atender 35 Instituciones Oficiales del Municipaio de Villaviencio, mediante el desarrolla de actividades fisicas y recreativas Virtuales, teniendo en cuenta el escenario de la pandemia COVID-19. | V10: 270000000 | W10: 270000000 | X10: 170,000,000 (33) 100,000,000 (90) | Y10: 66452687 | Z10: $10,000,000 (90) $56,452,687 (33) | AA10: =IF(Y10=0,"0",IFERROR(Y10/W10,0)) -> 0.246121063 | AB10: De acuerdo a los tres componentes del proyecto se ha logrado ejecutar un 66,7 % del presupuesto definitivo asignado para la vigencia 2020. | AC10: PERSONAS | AD10: 4092 | AE10: INSTITUTO MUNICIPAL DE DEPORTE Y RECREACIÓN DE VILLAVICENCIO - IMDER | AF10: N/A | AG10: N/A
A11: CIUDAD GARANTE DE DERECHOS | B11: CIUDAD ACTIVA | C11: N/A | D11: (226) Establecer alianzas con instituciones de educación para la profesionalización del deporte | E11: Número de alianzas con instituciones de educación establecidas | F11: 0 | G11: 2 | H11: 0 | I11: 2016-050001-005 | J11: APORTES A LOS PROCESOS DE ORGANIZACIONES SOCIALES Y DEPORTIVAS EN EL MUNICIPIO DE VILLAVICENCIO, META, ORINOQUIA | K11: Suscribir mecanismos de apoyo que permitan el desarrollo del deporte en las diferentes categorías | L11: Establecer Convenios para la profesionalizacion del deporte. | M11: EJECUCION | N11: 2020-02-06 | O11: 2020-12-13 | P11: Apoyo Interistitucional | Q11: Numero | R11: 4 | S11: 2 | T11: 0.5 | U11: Se logro avanza mediante la realizacion de dos (2) convenio con la Universidad de los Llanos y la Universidad COOPERATIVA, sin uso de recurso solo gestion a traves del Talento Humano del Instituto. | V11: 0 | W11: 0 | X11: 0 | Y11: 0 | Z11: 0 | AA11: 0 | AB11: Se logrado avanzar en la meta debido a que se realizado gestion con el talento humano que interactua en la vigencia en el Instituto. | AC11: NUMERO | AD11: 2 | AE11: INSTITUTO MUNICIPAL DE DEPORTE Y RECREACIÓN DE VILLAVICENCIO - IMDER | AF11: N/A | AG11: Se logro avanza mediante la realizacion de dos (2) convenio con la Universidad de los Llanos y la Universidad COOPERATIVA, sin uso de recurso solo gestion a traves del Talento Humano del Instituto.
H12: 0 | T12: 0 | AA12: 0
A13: CIUDAD GARANTE DE DERECHOS | B13: CIUDAD ACTIVA | C13: N/A | D13: (227) Otorgar incentivos a los deportistas que hayan representado al municipio en competiciones nacionales e internacionales, obteniendo una gran figuración deportiva | E13: Número de incentivos otorgados | F13: 4 | G13: 4 | H13: 1 | I13: 2016-050001-005 | J13: APORTES A LOS PROCESOS DE ORGANIZACIONES SOCIALES Y DEPORTIVAS EN EL MUNICIPIO DE VILLAVICENCIO, META, ORINOQUIA | K13: Suscribir mecanismos de apoyo que permitan el desarrollo del deporte en las diferentes categorías | L13: 1.Acompañamiento y asesoramiento a la población en el proceso de adquisición de reconocimientos y renovaciones a los clubes deportivos del municipio. 2.Apoyo financiero a deportistas destacados en la participación de eventos de orden nacional | M13: EJECUCION | N13: 2020-02-06 | O13: 2020-12-13 | P13: Apoyo Interistitucional | Q13: Numero | R13: 1 | S13: 0.72 | T13: 0.72 | U13: El Instituto Municipal de Deporte y Recreación IMDER cumple con lo establecido del Acuerdo Municipal 320 del 2016, se realizó el evento de premiación de los incentivos económicos a los tres mejores deportistas del municipio de Villavicencio “GRAMALOTE ORO, PLATA Y BRONCE”, GRAMALOTE ESPECIAL (Para deportistas con discapacidad, GRAMALOTE TODA UNA VIDA (Persona que han hecho historia desde la como deportista y/o formador del deporte dejando en alto el nivel del deporta municipal, departamento, nacional e internacional. Esta premiación corresponde a la vigencia inmediatamente anterior. | V13: 84000000 | W13: 84000000 | X13: 84,000,000 (33) | Y13: 21531016 | Z13: 21,531,016(33) | AA13: 0.256321619 | AB13: El Instituto Municipal de Deporte y Recreación IMDER cumple con lo establecido del Acuerdo Municipal 320 del 2016, se realizó el evento de premiación de los incentivos económicos a los tres mejores deportistas del municipio de Villavicencio “GRAMALOTE ORO, PLATA Y BRONCE”, GRAMALOTE ESPECIAL (Para deportistas con discapacidad, GRAMALOTE TODA UNA VIDA (Persona que han hecho historia desde la como deportista y/o formador del deporte dejando en alto el nivel del deporta municipal, departamento, nacional e internacional. Esta premiación corresponde a la vigencia inmediatamente anterior. | AC13: PERSONAS | AD13: 4 | AE13: INSTITUTO MUNICIPAL DE DEPORTE Y RECREACIÓN DE VILLAVICENCIO - IMDER | AF13: N/A | AG13: N/A
A14: CIUDAD GARANTE DE DERECHOS | B14: CIUDAD ACTIVA | C14: N/A | D14: (228) Apoyar los organismos deportivos a través de medios físicos y virtuales | E14: Organismos deportivos apoyados | F14: 45 | G14: 25 | H14: =IF(F14=0,"0",IFERROR(G14/F14,0)) -> 0.5555555556 | I14: 2016-050001-0052 | J14: APORTES A LOS PROCESOS DE ORGANIZACIONES SOCIALES Y DEPORTIVAS EN EL MUNICIPIO DE VILLAVICENCIO, META, ORINOQUIA | K14: Suscribir mecanismos de apoyo que permitan el desarrollo del deporte en las diferentes categorías | L14: 1.Acompañamiento y asesoramiento a la población en el proceso de adquisición de reconocimientos y renovaciones a los clubes deportivos del municipio. 2.Apoyo financiero a deportistas destacados en la participación de eventos de orden nacional | M14: EJECUCION | N14: 2020-02-06 | O14: 2020-12-13 | P14: Actividad de Condicion Fisica Realizas | Q14: Numero | R14: 45 | S14: 25 | T14: 0.5555555556 | U14: El Programa de Organizaciones Sociales a traves del equipo profesional del area a venido asesorando, recepcionando y dando solución a los respectivos requerimientos que las entidades deportivas y no deportivas del deporte asociado a solicitado. A su vez a venido realizando visitas tecnicas, evaluación y seguimiento a las deiferentes entidades deportivas para realizar el proceso de legalizacion y asi otrogar el reconocimiento deportivo. Hasta la fecha se ha logrado dar reconocimiento deportivo a 25 nuevos clubes en la ciudad. | V14: 536000000 | W14: 536000000 | X14: 310,000,000 (90) 226,000,000 (33) | Y14: 285839998 | Z14: 129,100,000 (90) 156,739,998 (33) | AA14: 0.5332835784 | AB14: Dentro del componente del proeeco aporte a los proceso de orgnaizaciones sociales y deportivas del municipio de villavicencion se establece se asigna un recurso al compoenente denominado apoyo a organizaciones deportivas sociales institucional y Ongs con una ejecucion presupuestal del 53,32% | AC14: NUMERO | AD14: 25 | AE14: INSTITUTO MUNICIPAL DE DEPORTE Y RECREACIÓN DE VILLAVICENCIO - IMDER | AF14: N/A | AG14: N/A
A15: CIUDAD GARANTE DE DERECHOS | B15: CIUDAD ACTIVA | C15: N/A | D15: (229) Fortalecer el Observatorio del Deporte en alianza con universidades | E15: Observatorio del deporte fortalecido | F15: 1 | G15: 0.1 | H15: 0.1 | I15: 2016-050001-180 | J15: FORTALECIMIENTO DEL OBSERVATORIO DEL DEPORTE RECREACION, ACTIVIDAD FISICA Y EDUCACION FISICA EN MUNICIPIO DE VILLAVICENCIO | K15: Fortalecer el observatorio del sector deporte, recreación, actividad física y educación física de la ciudad de Villavicencio | L15: Consolidación, análisis de datos que contribuyan al cumplimiento de la política pública y permita tomar decisiones encaminadas a las estrategias del sector. | M15: EJECUCION | N15: 2020-02-06 | O15: 2020-12-01 | P15: Observatorios con asistencia tecnica y acompañamiento | Q15: Numero | R15: 1 | S15: 0.1 | T15: 0.1 | U15: Se realiza asistencia tecnica y consolidacion de datos del Observatorios para las diferentes actividades del proceso misionales del Instituto. | V15: 276000000 | W15: 276000000 | X15: 276,000,000 (02) | Y15: 159236666 | Z15: $159,236,666 (02) | AA15: 0.576944442 | AB15: De acuerdo a los componentes del proyecto se ha ejecutado parcialmente cada uno de ellos logrando una jecucion del 57,7% del presupuesto definitivo. | AC15: NUMERO | AD15: 1 | AE15: INSTITUTO MUNICIPAL DE DEPORTE Y RECREACIÓN DE VILLAVICENCIO - IMDER | AF15: N/A | AG15: N/A
A16: CIUDAD GARANTE DE DERECHOS | B16: CIUDAD ACTIVA | C16: N/A | D16: (230) Implementar la política del deporte, recreación y actividad física con enfoque diferencial y de género | E16: Política del deporte, recreación y actividad física implementada | F16: 0 | G16: 0.22 | H16: 0 | I16: 2016-050001-55 | J16: IMPLEMENTACIÓN DE LA POLÍTICA PÚBLICA DEL DEPORTE, LA RECREACIÓN, LA ACTIVIDAD FÍSICA Y LA EDUCACIÓN FÍSICA EN EL MUNICIPIO DE VILLAVICENCIO, META, ORINOQUÍA | K16: Crear e implementar la política pública de la recreación, el deporte, la actividad física y educación física en el municipio de Villavicencio | L16: La política publica se encuentra en la fase de implementación, por lo cual se establece estrategias orientadas para la implementación de las cuatro líneas adoptadas por la entidad. | M16: EJECUCION | N16: 2020-09-10 | O16: 2020-12-20 | P16: Lineamientos de Politica elaborados | Q16: Numero | R16: 1 | S16: 0.02 | T16: 0.02 | U16: Lineamientos metodológicos estan elaborados los lineameintos metiodologicos para el area de deportes y actividad fisica, de los lineamientos por proyectos podmeos decir que se han elaborado los de , futbol , futbol salon, futbol playa y boxeo , para el proyecto de escuelas de formacion, se han realizado tes reuniones de prpearcion metodologica para la soiclaizacion de estos lineamientos, y los documentos metodologicos de trabajo que grantizan la calidad de estos procesos, | V16: 324000000 | W16: 324000000 | X16: 324,000,000(02) | Y16: 0 | Z16: 0 | AA16: 0 | AB16: No se ha logrado avanzar en la ejecucion del proyecto teniendo en cuenta la emergencia sanitaria declarad por el goboerno Nacional.Los avances realizados se han hecho en gestion, con el recurso humano que cuenta el instituto. | AC16: UNIDAD | AD16: 1 | AE16: INSTITUTO MUNICIPAL DE DEPORTE Y RECREACIÓN DE VILLAVICENCIO - IMDER | AF16: N/A | AG16: Debido la pandemia por el COVID 19, se genero retraso en la iniciacion del proyecto por lo cual se tiene programado la ejecucion de algunos componentes para el cuarto trimestre del presente año.
A17: CIUDAD GARANTE DE DERECHOS | B17: CIUDAD ACTIVA | C17: N/A | D17: (233) Realizar mantenimiento y mejoramiento a la infraestructura deportiva, recreativa y administrativa a cargo del IMDER | E17: Infraestructuras deportivas, recreativas y administrativas mejoradas | F17: 19 | G17: 0 | H17: 0 | I17: 2016-050001-156 | J17: DOTACIÓN MEJORAMIENTO Y MANTENIMIENTO DE ESCENARIOS DEPORTIVOS Y RECREATIVOS EN EL MUNICIPIO DE VILLAVICENCIO | K17: Ampliar y mejorar la infraestructura deportiva y recreativa | L17: la dotacion, mejoramiento y mantenimiento de los escenarios deportivos y recreativos, se realizara luego de llevar a cabo una cuantificacion de las necesidades particulares de cada espacio.Las siguientes actividades son necesarias para el desarrollo de la dotacion, mejoramiento y mantenimiento de los escenarios deportivos y recreativos:-Dotacion de escenarios deportivos y recreativos.-Mejoramiento de escenarios deportivos y recreativos.-Mantenimiento de los escenarios deportivos y recreativos.-Interventoria tecnica, administrativa y financiera. | M17: SIN EJECUCION | N17: N/A | O17: N/A | P17: Porcentaje de proyectos de infraestructura con dotacion gestionada | Q17: Porcentual | R17: 25 | S17: 0 | T17: 0 | U17: No se ejecutado a la fecha de forma financiera en avance pero en actividades administrativas, se ha logrado definir los criterios para conceder mas 19 convenios solidarios con los presidentes de junta para el mejoramiento de los escenarios deportivos o recreativos que cumplan con los requisitos de la convocatoria. | V17: 2694686 | W17: 538216181.9 | X17: $ 214,348,802(90) $ 150,000,000 (33) $ 173,867,379,04 (92) | Z17: 0 | AA17: 0 | AB17: N/A | AC17: NUMERO | AD17: 0 | AE17: INSTITUTO MUNICIPAL DE DEPORTE Y RECREACIÓN DE VILLAVICENCIO - IMDER | AF17: N/A | AG17: No se ejecutado a la fecha de forma financiera en avance pero en actividades administrativas, se ha logrado definir los criterios para conceder mas 19 convenios solidarios con los presidentes de junta para el mejoramiento de los escenarios deportivos o recreativos que cumplan con los requisitos de la convocatoria.
H18: 0 | T18: 0 | AA18: 0
H19: 0 | T19: 0 | AA19: 0
H20: 0 | T20: 0 | AA20: 0
H21: 0 | T21: 0 | AA21: 0 | AD21: =#REF!+#REF! -> 
H22: 0 | T22: 0 | AA22: 0 | AD22: =#REF!+#REF! -> 
A23: TOTAL | R23: =SUM(R7:R21) -> 110102 | S23: =SUM(S7:S21) -> 81919.84 | T23: 0.744035894 | W23: =SUM(W7:W21) -> 4877837250 | Y23: =SUM(Y7:Y21) -> 1369130657 | AA23: 0.2806839562 | AD23: =SUM(AD7:AD19) -> 72397
A25: CONTROL DE FIRMAS | C25: FIRMA DE QUIEN ELABORÓ | J25: FIRMA DE QUIEN REVISÓ | P25: FIRMA DE QUIEN APROBÓ | X25: RADICADO PLANEACION | Z25: FIRMA Y SELLO DE QUIEN RECIBE SECRETARÍA DE PLANEACIÓN
C26: NOMBRE | E26: LUZ YENNY HERNANDEZ ELAICA | J26: NOMBRE | K26: ROSA JAZMIN DE ARMAS MONTAÑO | P26: NOMBRE | R26: LUIS FERNANDO VARGAS PEÑA | Z26: TIPO
C27: TELÉFONO | E27: 3213580733 | J27: TELÉFONO | K27: 3144425031 | P27: TELÉFONO | R27: 3212787156 | Z27: CONSECUTIVO
C28: CORREO | E28: Luzyennyedc@hotmail.com | J28: CORREO | K28: subdireccionfinanciera@imdervillavicencio.gov.co | P28: CORREO | R28: direccion@imdervillavicencio.gov.co | Z28: FECHA
C29: CARGO | E29: Profesional Especializado de Planeacion IMDER- Contratista | J29: CARGO | K29: Subdirectora Administrativa y Financiera | P29: CARGO | R29: Director | Z29: NO. FOLIOS
C30: FECHA | E30: 2020-10-15 | J30: FECHA | K30: 2020-10-15 | P30: FECHA | R30: 2020-10-15 | Z30: MEDIO MAGNÉTICO

Sheet Hoja1 (hidden)
A2: ENERO A MARZO
A3: ABRIL A JUNIO
A4: JULIO A SEPTIEMBRE
A5: OCTUBRE A DICIEMBRE
A10: ENTIDAD | B10: ALCALDÍA_DE_VILLAVICENCIO | C10: INSTITUTO_DE_TURISMO | D10: CORPORACIÓN_CULTURAL_CORCUMVI | E10: EMPRESA_DE_ACUEDUCTO_Y_ALCANTARILLADO_EAAV | F10: INSTITUTO_DE_DEPORTE_Y_RECREACIÓN_IMDER | G10: VILLAVIVIENDA
C11: N.A. | D11: N.A. | E11: N.A. | F11: N.A. | G11: N.A.
A12: ALCALDÍA_DE_VILLAVICENCIO | B12: SECRETARIA DE MOVILIDAD
A13: INSTITUTO_DE_TURISMO | B13: SECRETARIA DE COMPETITIVIDAD Y DESARROLLO
A14: CORPORACIÓN_CULTURAL_CORCUMVI | B14: SECRETARIA DE MEDIO AMBIENTE
A15: EMPRESA_DE_ACUEDUCTO_Y_ALCANTARILLADO_EAAV | B15: SECRETARIA DE CONTROL FÍSICO
A16: INSTITUTO_DE_DEPORTE_Y_RECREACIÓN_IMDER | B16: SECRETARA DE GESTIÓN SOCIAL Y PARTICIPACIÓN CIUDADANA
A17: VILLAVIVIENDA | B17: SECRETARIA DE LA MUJER
B18: SECRETARIA DE EDUCACIÓN
B19: SECRETARIA DE SALUD
B20: SECRETARIA DE HACIENDA
B21: SECRETARIA DE DESARROLLO INSTITUCIONAL
B22: SECRETARIA DE GOBIERNO Y POSTCONFLICTO
B23: SECRETARIA DE LAS TECNOLOGÍAS Y DE LA INFORMACIÓN Y COMUNICACIÓN TICS
B24: OFICINA GESTIÓN DEL RIESGO
B25: SECRETARIA DE INFRAESTRUCTURA
B26: SECRETARIA DE PLANEACION
B27: OFICINA ASESORIA JURIDICA
B28: OFICINA DE CONTRATACION
B29: OFICINA DE CONTROL INTERNO DE GESTION
B30: OFICINA DE CONTROL INTERNO DISCIPLINARIO

Sheet INSTRUCCIONES
A1: ENTIDAD | J1: SECTOR | P1: VIGENCIA | T1: FORMULACION | W1: SEGUIMIENTO | Z1: PERIODO DE SEGUIIENTO
C2: Utilice este boton solo cuando necesite agregar mas filas.
A3: IDENTIFICACION CON EL PLAN DE DESARROLLO 20XX - 20XX | P3: INFORMACION FISICA DEL PROYECTO | AC3: INFORMACION POBLACION | AE3: INFORMACION INSTITUCIONAL DEL PROYECTO
A4: EJE ESTRATEGICO | B4: PROGRAMA | C4: SUBPROGRAMA | D4: META PDM | E4: NOMBRE DEL INDICADOR META PRODUCTO PDM | F4: CANTIDAD PROGRAMADA PARA LA VIGENCIA (QP) | G4: CANTIDAD EJECUTADA PARA LA VIGENCIA (QE) | H4: % AVANCE DE EJECUCIÓN META PDM VIGENCIA | I4: Nº REGISTRO BPPV | J4: NOMBRE DEL PROYECTO REGISTRADO | K4: OBJETIVO | L4: ESTRATEGIA | M4: ESTADO DEL PROYECTO | N4: FECHA DE INICIO DE EJECUCION DEL PROYECTO VIGENCIA | O4: FECHA DE TERMINACION DE EJECUCION DEL PROYECTO VIGENCIA | P4: NOMBRE DEL INDICADOR DEL PROYECTO | Q4: UNIDAD DE MEDIDA | R4: MEDICIÓN INDICADOR DEL PROYECTO | T4: % INDICE DE AVANCE FISICO (b) * 100 /(a) | U4: JUSTIFICACIÓN DE AVANCE DEL PROYECTO | V4: VALOR PRESUPUESTO INICIAL | W4: PROGRAMACION PRESUPUESTAL | Y4: EJECUCION PRESUPUESTAL | AA4: % INDICE DE AVANCE FINANCIERO (ep)*100/ (pi) | AB4: JUSTIICACION AVACE FINANCIERO | AC4: POBLACION BENEFICIADA Y/O ATENDIDA | AE4: RESPONSABLES | AG4: OBSERVACIONES AL PROYECTO
F5: 20XX | G5: 20XX | H5: 20XX | N5: 20XX | O5: 20XX | R5: CANTIDAD PROGRAMADA (a) | S5: CANTIDAD EJECUTADA (b) | T5: (ifc ) | W5: VALOR $ (pi) | X5: FUENTE DE FINANCIACION | Y5: VALOR $ ( ep ) | Z5: FUENTE DE FINANCIACION | AA5: (iep) | AC5: UNIDAD | AD5: CANTIDAD | AE5: ENTIDAD EJECUTORA | AF5: COORDINADO CON OTRA ENTIDAD | AG5: 20XX
A6: 1 | B6: 2 | C6: 3 | D6: 4 | E6: 5 | F6: 6 | G6: 7 | H6: 8 | I6: 9 | J6: 10 | K6: 11 | L6: 12 | M6: 13 | N6: 14 | O6: 15 | P6: 16 | Q6: 17 | R6: 18 | S6: 19 | T6: 20 | U6: 21 | V6: 22 | W6: 23 | X6: 24 | Y6: 25 | Z6: 26 | AA6: 27 | AB6: 28 | AC6: 29 | AD6: 30 | AE6: 31 | AF6: 32 | AG6: 33
A7: COLUMNA 1 Son la primera y segunda division en la estructura del Plan de Desarrollo. Ejemplo: 6. Eje estrategico social 6.1 Sector Educaciona | B7: COLUMNA 2 Aquí se relaciona la tercera escala de la estructura del Plan de Desarrollo Ejemplo: 6.1.3 Programa: unidos por el acceso y permanencia con equidad e inclusion. | C7: COLUMNA 3 Aquí se relaciona el cuarto nivel estructural del Plan de Desarrollo Ejemplo: 6.1.3.1 Subprograma: Cobertura educativa | D7: COLUMNA 4 Son las acciones con las que se desarrollara cada uno de los subprogramas y que se relacionan en la Matriz Estrategica del Acuerdo de Adopcion del Plan de Desarrollo Vigente. Ejemplo: Meta 4: Modernizacion de la Secretaria de Educacion de Villavicencio | E7: COLUMNA 5 Lo encontraremos en la Matriz Estrategica en la columna denominada INDICADOR DE PRODUCTO Ejemplo: Número de procesos administrativos de modernización y actualización desarrollados por la Secretaria de Educacion Municipal | F7: COLUMNA 6 Corresponde al nivel programado para el indicador de producto en la vigencia que se reporta Ejemplo: 4 | G7: COLUMNA 7 Corresponde al nivel de avance o ejecucion del indicador de producto en la vigencia y/o periodo que se reporta Ejemplo: | H7: =IF(F7=0,"0",IFERROR(G7/F7,0)) -> 0 | I7: COLUMNA 9 Escriba el codigo de registro SSEPI, del proyecto , dado por el Banco de Programas y Proyectos. | J7: COLUMNA 10 Escriba el nombre del proyecto de Inversión, tal como quedó registrado en el Banco de programas y Proyectos. | K7: COLUMNA 11 Ver ficha EBI numeral 5 " Objetivo General del Proyecto" de la Metodología General para la identificación, Preparación y Evaluación de Proyectos, del proyecto registrado en el Banco de Programas y proyectos. | L7: COLUMNA 12 ESTRATEGIA: Consiste en definir los medios, acciones y recursos para el logro de los objetivos, considerando para ello las condiciones sociales, institucionales, administrativas, políticas y económicas. ______ Fuente: Cartilla Plan de Desarrollo 2008-2011 del DNP. | N7: COLUMNA 14 Indique la fecha de terminación del ultimo contrato y/o convenio del proyecto. | O7: COLUMNA 15 Indique la fecha de terminación del ultimo contrato y/o convenio del proyecto. | P7: Columnas 16 y 17 relacione el indicador de producto del proyectoy la unidad de medida en la que se realiza la medicion | R7: Columnas 18 y 19 Ingrese los datos correspondientes a las cantidades programadas y cantidades ejecutadas | T7: =IF(R7=0,"0",IFERROR(S7/R7,0)) -> 0 | U7: COLUMNA 21 Indique las razones por las cuales el % de Indice de avance físico, se encuentra por debajo y/o por encima del parámetro evaluador, dado para el periodo analizado y/o evaluado. | V7: COLUMNA 22 Indique el valor presupuestal asignado par el proyecto en el POAI | W7: COLUMNA 23 Indique el valor en pesos ($) de la columa "APROPIACIÓN DEFINITIVA" de la ejecución pasiva, a la fecha de corte del Informe solicitado | X7: COLUMNA 24 Indique el nombre de las diferentes fuentes de financiación. | Y7: COLUMNA 25 Valor ejecutado a la fecha de seguimiento | Z7: COLUMNA 26 Indique el nombre de las diferentes fuentes de financiación. | AA7: =IF(Y7=0,"0",IFERROR(Y7/W7,0)) -> 0 | AB7: COLUMNA 31 Indique las razones por las cuales el % Indice de avance Financiero, está por debajo y/o por encima del parámetro evaluador, dado para el periodo analizado y/o evaluado. | AC7: COLUMNA 29 NUMERO (Se refiere a las personas beneficiadas por el proyecto) | AD7: COLUMNA 30 Formulada para sumatoria de la informacion de poblacion. | AE7: COLUMNA 31 Se relaciona la Direccion, Secretaria, Oficina, Ente desentralizado o Dependencia que EJECUTA y tiene a cargo el proyecto. | AF7: COLUMNA 32 Se relaciona la Direccion, Secretaria, Oficina, Ente desentralizado o Dependencia que APOYA A LA ENTIDAD EJECUTORA (Si es el caso). | AG7: COLUMNA 33 Observaciones de como va el proyecto si continua o no o las razones de como se enuentra.
H8: 0 | M8: COLUMNA 13 El proyecto se puede encontrar en uno de los sigueintes estados en e l momento de formulación y/o seguimiento del Plan de Acción: - EN EJECUCION - EN PERFIL (El Proyecto, se encuentra evaluado y registrado) y/o - EJECUTADO | T8: =IF(R8=0,"0",IFERROR(S8/R8,0)) -> 0 | AA8: =IF(Y8=0,"0",IFERROR(Y8/W8,0)) -> 0
H9: 0 | T9: 0 | AA9: 0
H10: 0 | T10: 0 | AA10: 0
H11: 0 | T11: 0 | AA11: 0
F12: 10 | G12: 20 | H12: 2 | R12: 10 | S12: 20 | T12: 2 | AA12: 0
F13: 10 | G13: 18 | H13: 1.8 | R13: 10 | S13: 18 | T13: 1.8 | AA13: 0
F14: 10 | G14: 15 | H14: 1.5 | R14: 10 | S14: 15 | T14: 1.5 | AA14: 0
F15: 10 | G15: 13 | H15: 1.3 | R15: 10 | S15: 13 | T15: 1.3 | AA15: 0
F16: 10 | G16: 11 | H16: 1.1 | R16: 10 | S16: 11 | T16: 1.1 | AA16: 0 | AD16: 60
F17: 10 | G17: 10 | H17: 1 | R17: 10 | S17: 10 | T17: 1 | W17: 500000 | Y17: 200000 | AA17: 0.4 | AD17: 0
F18: 10 | G18: 8 | H18: 0.8 | R18: 10 | S18: 8 | T18: 0.8 | AA18: 0 | AD18: 0
F19: 10 | G19: 7 | H19: 0.7 | R19: 10 | S19: 7 | T19: 0.7 | AA19: 0 | AD19: 0
F20: 10 | G20: 5 | H20: 0.5 | R20: 10 | S20: 5 | T20: 0.5 | AA20: 0 | AD20: 0
F21: 10 | G21: 3 | H21: 0.3 | R21: 10 | S21: 3 | T21: 0.3 | AA21: 0 | AD21: 0
F22: 10 | G22: 0 | H22: 0 | R22: 10 | S22: 0 | T22: 0 | AA22: 0 | AD22: 0
A23: p | H23: 0 | T23: 0 | AA23: 0 | AD23: =#REF!+#REF! -> 
A24: TOTAL | F24: =SUM(F7:F22) -> 110 | G24: =SUM(G7:G22) -> 110 | H24: 1 | R24: =SUM(R7:R23) -> 110 | S24: =SUM(S7:S23) -> 110 | T24: 1 | W24: =SUM(W17:W23) -> 500000 | Y24: =SUM(Y7:Y23) -> 200000 | AA24: 0.4 | AD24: =SUM(AD16:AD22) -> 60

Sheet Hoja2 (hidden)
A1: ESTADO DEL PROYECTO | B1: UNIDAD DE MEDIDA
A3: EJECUCION | B3: HECTAREAS
A4: SIN EJECUCION | B4: KILOMETROS
A5: CERRADO | B5: KILOMETROS2
A6: SUSPENDIDO | B6: METRO
A7: EN CONVENIO | B7: METRO2
A8: FASE 1 OCAD | B8: METRO3
A9: FASE 2 OCAD | B9: KILOVATIOS
A10: FASE 3 OCAD | B10: MES
A11: INSCRITO | B11: SEMANA
B12: NUMERO
B13: PESO
B14: MONEDA/CORRIENTE
B15: PORCENTAJE
B16: TONELADA
B17: UNIDAD
B18: HOGARES
B19: FAMILIAS
B20: PERSONAS
B21: PREDIOS
